bitfinex/quotes_SOLUSD_20220103
["timestamp","ask_amount","ask_price","bid_price","bid_amount"]
[1641251670602,3.01986881,170.5,170.4,1.42669368]
[1641251670801,3.01986881,170.5,170.41,8.7993]
[1641251671002,3.01986881,170.5,170.41,9.0593]
[1641251671203,3.01986881,170.5,170.42,1.42669368]
[1641251671404,3.01986881,170.5,170.43,30.84382429]
[1641251671600,3.01986881,170.5,170.43,31.10382429]
[1641251671900,3.01986881,170.5,170.45,8.7987]
[1641251672100,3.01986881,170.5,170.45,9.0587]
[1641251672301,8.7991,170.53,170.45,9.5587]
[1641251673202,2.25997901,170.52,170.45,9.5587]
[1641251673599,2.25997901,170.52,170.45,9.2987]
[1641251675205,1.75997901,170.52,170.45,9.2987]
[1641251676105,1.75997901,170.52,170.45,9.5587]
[1641251676308,1.75997901,170.52,170.45,9.2987]
[1641251676504,10.55907901,170.52,170.45,9.2987]
[1641251678310,1.75997901,170.52,170.45,9.2987]
[1641251678911,1.75997901,170.52,170.45,9.5587]
[1641251684140,1.75997901,170.52,170.45,9.2987]
[1641251684342,10.55917901,170.52,170.45,9.2987]
[1641251684940,1.75997901,170.52,170.45,9.2987]
[1641251685239,1.75997901,170.52,170.45,8.7987]
[1641251685440,8.7997,170.51,170.45,8.7987]
[1641251686239,1.75997901,170.52,170.45,8.7987]
[1641251686439,1.75997901,170.52,170.45,9.0587]
[1641251686839,8.7985,170.54,170.45,9.0587]
[1641251687041,22.5685,170.55,170.46,23.5171]
[1641251687240,22.5685,170.55,170.46,32.3144]
[1641251687442,23.0685,170.55,170.46,34.50109368]
[1641251687841,2.94719069,170.54,170.46,34.50109368]
[1641251689644,11.74529069,170.54,170.46,32.8144]
[1641251689847,2.94719069,170.54,170.46,32.8144]
[1641251690045,3.20719069,170.54,170.46,32.8144]
[1641251690243,3.20719069,170.54,170.46,9.2973]
[1641251690445,2.94719069,170.54,170.46,9.2973]
[1641251690645,2.94719069,170.54,170.43,30.84382429]
[1641251690646,8.8001,170.5,170.43,30.84382429]
[1641251690846,2.73569612,170.49,170.43,31.34382429]
[1641251691645,2.73569612,170.49,170.43,40.14372429]
[1641251692046,2.73569612,170.49,170.43,39.90372429]
[1641251692246,2.73569612,170.49,170.43,39.64372429]
[1641251693446,24.2684,170.54,170.43,40.40372429]
[1641251693646,76.2395,170.56,170.45,8.7988]
[1641251693850,76.2395,170.56,170.45,9.2988]
[1641251694050,76.2395,170.56,170.45,9.5588]
[1641251694649,3.01154107,170.55,170.45,9.5588]
[1641251695651,2.48832377,170.51,170.45,9.2988]
[1641251696962,2.48832377,170.51,170.45,9.5588]
[1641251701695,2.48832377,170.51,170.45,9.2988]
[1641251702100,2.48832377,170.51,170.45,0.5]
[1641251702500,2.74832377,170.51,170.43,31.34382429]
[1641251703498,11.55373435,170.47,170.43,31.34382429]
[1641251703697,2.75213435,170.47,170.43,31.34382429]
[1641251703897,2.75213435,170.47,170.43,30.84382429]
[1641251705400,2.75213435,170.47,170.43,31.34382429]
[1641251706605,8.8012,170.48,170.43,31.34382429]
[1641251707208,8.8006,170.5,170.43,40.14442429]
[1641251707406,29.3338,170.54,170.43,40.40442429]
[1641251707407,8.56,170.52,170.43,40.40442429]
[1641251707608,2.21218524,170.52,170.43,40.40442429]
[1641251707810,2.21218524,170.52,170.43,41.83111797]
[1641251708009,2.21218524,170.52,170.43,40.40442429]
[1641251708209,2.21218524,170.52,170.44,23.7527]
[1641251708407,2.21218524,170.52,170.45,8.7988]
[1641251708608,2.21218524,170.52,170.45,9.0588]
[1641251708810,2.21218524,170.52,170.45,9.5588]
[1641251709209,8.799,170.53,170.45,9.5588]
[1641251709411,29.3268,170.59,170.45,19.54549368]
[1641251709711,24.42160637,170.6,170.45,19.54549368]
[1641251710108,24.42160637,170.6,170.46,22.6148]
[1641251710309,11.13320921,170.59,170.47,8.56]
[1641251710510,2.33750921,170.59,170.47,10.24669368]
[1641251710711,2.33750921,170.59,170.48,24.11549368]
[1641251710933,2.33750921,170.59,170.48,33.17549368]
[1641251711109,2.33750921,170.59,170.49,1.42669368]
[1641251711312,2.33750921,170.59,170.5,39.14400637]
[1641251711510,2.33750921,170.59,170.5,39.40400637]
[1641251711712,2.33750921,170.59,170.5,41.33070005]
[1641251713616,2.33750921,170.59,170.5,50.12490005]
[1641251713817,2.33750921,170.59,170.5,48.69820637]
[1641251715817,2.33750921,170.59,170.5,50.12490005]
[1641251716818,2.33750921,170.59,170.5,48.43820637]
[1641251718019,2.33750921,170.59,170.5,48.69820637]
[1641251718223,2.33750921,170.59,170.5,48.19820637]
[1641251718448,2.33750921,170.59,170.5,39.63820637]
[1641251718621,2.59750921,170.59,170.5,30.58400637]
[1641251718824,27.04650583,170.59,170.5,30.58400637]
[1641251719020,27.54650583,170.59,170.5,30.58400637]
[1641251719422,2.6094096,170.54,170.5,30.58400637]
[1641251719621,30.58400637,170.5,170.49,0.0078]
[1641251719826,30.58400637,170.5,170.34,12.51414815]
[1641251719827,3.00082381,170.43,170.34,12.51414815]
[1641251720023,3.26082381,170.43,170.34,12.51414815]
[1641251720223,12.32082381,170.43,170.34,12.51414815]
[1641251720422,8.8046,170.42,170.34,12.51414815]
[1641251720623,2.46186287,170.4,170.32,26.73816736]
[1641251720822,11.52186287,170.4,170.32,26.73816736]
[1641251721121,11.78186287,170.4,170.32,26.73816736]
[1641251721524,8.8067,170.39,170.32,26.73816736]
[1641251721921,9.0667,170.39,170.32,26.99816736]
[1641251722425,9.0667,170.39,170.32,26.73816736]
[1641251723523,2.46186287,170.4,170.32,26.99816736]
[1641251723926,2.46186287,170.4,170.32,27.49816736]
[1641251724727,2.46186287,170.4,170.32,36.30176736]
[1641251724926,10.15410632,170.44,170.32,36.30176736]
[1641251728733,10.15410632,170.44,170.33,8.56]
[1641251729032,10.15410632,170.44,170.35,8.8021]
[1641251729234,10.15410632,170.44,170.36,31.68302448]
[1641251729437,10.15410632,170.44,170.36,32.18302448]
[1641251729732,10.15410632,170.44,170.36,31.94302448]
[1641251730739,18.95760632,170.44,170.36,31.94302448]
[1641251730935,2.61217981,170.43,170.36,31.94302448]
[1641251731934,2.61217981,170.43,170.36,31.68302448]
[1641251732135,11.41607981,170.43,170.36,31.68302448]
[1641251732437,2.61217981,170.43,170.36,31.68302448]
[1641251733459,2.61217981,170.43,170.36,31.94302448]
[1641251734361,11.41637981,170.43,170.36,31.94302448]
[1641251735063,2.61217981,170.43,170.36,31.94302448]
[1641251736663,8.8044,170.42,170.36,31.94302448]
[1641251737263,2.61217981,170.43,170.36,31.94302448]
[1641251737666,2.61217981,170.43,170.36,32.44302448]
[1641251738665,10.15410632,170.44,170.36,32.44302448]
[1641251738868,10.15410632,170.44,170.36,42.42971816]
[1641251739866,10.15410632,170.44,170.36,51.23201816]
[1641251741570,30.58400637,170.5,170.44,10.15410632]
[1641251741969,30.58400637,170.5,170.44,10.91410632]
[1641251742871,30.58400637,170.5,170.45,26.86474426]
[1641251743173,30.58400637,170.5,170.45,27.12474426]
[1641251743370,30.58400637,170.5,170.45,27.62474426]
[1641251743770,30.58400637,170.5,170.45,33.44374426]
[1641251744172,1.64256331,170.54,170.5,20.42990005]
[1641251744371,1.64256331,170.55,170.5,28.07290005]
[1641251744573,1.64256331,170.55,170.51,1.42669368]
[1641251744973,1.64256331,170.55,170.51,2.18669368]
[1641251745172,4.53931445,170.59,170.52,27.73028027]
[1641251745371,4.53931445,170.59,170.52,29.65697395]
[1641251745571,4.53931445,170.59,170.53,1.42669368]
[1641251745973,2.89675114,170.59,170.53,2.18669368]
[1641251746572,11.69225114,170.59,170.53,2.18669368]
[1641251747272,2.89675114,170.59,170.53,0.5]
[1641251747573,3.15675114,170.59,170.52,27.73028027]
[1641251747772,3.15675114,170.59,170.52,27.99028027]
[1641251748173,1.64256331,170.57,170.52,27.99028027]
[1641251748375,2.87486341,170.56,170.52,27.99028027]
[1641251748775,2.87486341,170.56,170.52,27.73028027]
[1641251748974,2.87486341,170.56,170.52,27.99028027]
[1641251751074,2.87486341,170.56,170.52,27.73028027]
[1641251752575,11.67226341,170.56,170.52,27.73028027]
[1641251752776,11.67226341,170.56,170.52,27.99028027]
[1641251752978,2.87486341,170.56,170.52,27.99028027]
[1641251753178,0.29450637,170.6,170.52,27.99028027]
[1641251753978,0.29450637,170.6,170.53,1.42669368]
[1641251754177,2.17233366,170.59,170.53,1.42669368]
[1641251754379,2.17233366,170.59,170.53,1.68669368]
[1641251755579,2.17233366,170.59,170.53,0.26]
[1641251755780,2.17233366,170.59,170.52,27.73028027]
[1641251756180,3.81489697,170.59,170.52,27.73028027]
[1641251756580,1.64256331,170.57,170.52,27.73028027]
[1641251756781,10.43946331,170.57,170.52,27.73028027]
[1641251756981,1.64256331,170.57,170.52,29.41697395]
[1641251757182,1.64256331,170.57,170.52,38.47697395]
[1641251757384,1.64256331,170.58,170.52,38.47697395]
[1641251757982,1.64256331,170.58,170.52,47.27177395]
[1641251758185,0.29450637,170.6,170.52,47.27177395]
[1641251759725,0.29450637,170.6,170.52,71.14157395]
[1641251763419,2.86836604,170.6,170.52,71.14157395]
[1641251766424,2.86836604,170.6,170.52,70.88157395]
[1641251767822,2.86836604,170.6,170.52,71.14157395]
[1641251770928,2.86836604,170.6,170.52,70.88157395]
[1641251771126,2.86836604,170.6,170.52,70.38157395]
[1641251772527,2.86836604,170.6,170.52,71.14157395]
[1641251774033,2.86836604,170.6,170.52,70.88157395]
[1641251775530,2.86836604,170.6,170.52,71.14157395]
[1641251776531,0.29450637,170.6,170.52,71.14157395]
[1641251777430,0.29450637,170.6,170.52,77.60457395]
[1641251781334,0.29450637,170.6,170.52,71.14157395]
[1641251782137,0.29450637,170.6,170.52,70.64157395]
[1641251782835,2.53658278,170.6,170.52,70.38157395]
[1641251783838,0.29450637,170.6,170.52,70.38157395]
[1641251784242,0.29450637,170.6,170.52,70.64157395]
[1641251785844,0.29450637,170.6,170.52,129.46157395]
[1641251786067,0.29450637,170.6,170.52,70.64157395]
[1641251787866,0.29450637,170.6,170.52,129.46157395]
[1641251789371,0.29450637,170.6,170.52,236.46157395]
[1641251793976,0.29450637,170.6,170.52,177.64157395]
[1641251795978,0.29450637,170.6,170.52,177.14157395]
[1641251797077,0.29450637,170.6,170.52,235.96157395]
[1641251797479,0.29450637,170.6,170.52,177.14157395]
[1641251799481,0.29450637,170.6,170.52,176.88157395]
[1641251801085,0.29450637,170.6,170.52,177.14157395]
[1641251801786,0.29450637,170.6,170.52,176.88157395]
[1641251802987,0.29450637,170.6,170.52,177.14157395]
[1641251803589,0.29450637,170.6,170.53,107.0]
[1641251803788,4.857,170.65,170.55,87.0]
[1641251803988,4.857,170.65,170.56,8.56]
[1641251804190,4.857,170.65,170.56,10.24669368]
[1641251804390,4.857,170.65,170.56,10.74669368]
[1641251804592,4.857,170.65,170.57,28.3124733]
[1641251804790,4.857,170.65,170.58,8.56]
[1641251804994,1.64256331,170.72,170.62,45.0]
[1641251805190,24.7571,170.73,170.63,33.5095]
[1641251805191,26.39966331,170.73,170.63,33.5095]
[1641251805392,1.64256331,170.73,170.63,34.0095]
[1641251805591,1.64256331,170.73,170.63,201.51619368]
[1641251805792,1.64256331,170.73,170.64,1.42669368]
[1641251805993,1.64256331,170.73,170.65,17.3474]
[1641251806196,1.64256331,170.73,170.66,28.15081376]
[1641251806393,1.64256331,170.73,170.67,8.56]
[1641251806593,0.14757545,170.75,170.67,10.24669368]
[1641251806794,0.14757545,170.75,170.68,22.5765]
[1641251806993,0.14757545,170.75,170.7,28.30014028]
[1641251807193,0.14757545,170.75,170.71,8.56]
[1641251807393,0.14757545,170.75,170.71,9.06]
[1641251807596,0.14757545,170.75,170.71,10.74669368]
[1641251808395,0.14757545,170.75,170.71,9.32]
[1641251808594,0.14757545,170.75,170.71,18.1039]
[1641251808795,0.14757545,170.75,170.71,19.53059368]
[1641251808995,0.14757545,170.75,170.71,18.1039]
[1641251809497,0.14757545,170.75,170.71,19.53059368]
[1641251815303,0.14757545,170.75,170.71,19.27059368]
[1641251816503,0.14757545,170.75,170.71,19.53059368]
[1641251818305,0.14757545,170.75,170.71,19.27059368]
[1641251818805,0.14757545,170.75,170.71,9.06]
[1641251819006,0.14757545,170.75,170.71,0.5]
[1641251819406,0.14757545,170.75,170.7,28.80014028]
[1641251820608,0.14757545,170.75,170.71,1.42669368]
[1641251821009,0.14757545,170.75,170.71,2.18669368]
[1641251821509,0.14757545,170.75,170.72,1.42669368]
[1641251821809,0.14757545,170.75,170.73,6.06439992]
[1641251822009,0.14757545,170.75,170.73,6.32439992]
[1641251822209,0.14757545,170.75,170.74,29.76730018]
[1641251822610,0.14757545,170.75,170.74,30.02730018]
[1641251825616,0.14757545,170.75,170.74,38.81180018]
[1641251826012,0.14757545,170.75,170.74,39.31180018]
[1641251832821,0.14757545,170.75,170.74,40.73849386]
[1641251833918,0.03791311,170.82,170.74,49.29849386]
[1641251834119,0.03791311,170.82,170.75,23.4146]
[1641251834320,1.64256331,170.87,170.84,20.25444805]
[1641251834523,1.64256331,170.87,170.84,15.56515445]
[1641251834754,1.64256331,170.9,170.85,29.28143119]
[1641251834949,1.64256331,170.9,170.85,29.78143119]
[1641251835146,1.64256331,170.9,170.86,1.42669368]
[1641251835353,4.45758675,170.92,170.89,8.777]
[1641251835551,4.45758675,170.92,170.91,22.54671247]
[1641251836450,1.42349266,170.92,170.91,22.54671247]
[1641251837554,1.42349266,170.92,170.91,22.80671247]
[1641251838155,1.42349266,170.92,170.91,22.54671247]
[1641251838959,1.42349266,170.92,170.91,22.80671247]
[1641251839157,1.42349266,170.92,170.91,22.54671247]
[1641251839559,1.42349266,170.92,170.91,22.80671247]
[1641251843059,1.42349266,170.92,170.9,6.06439992]
[1641251843261,81.32838475,170.91,170.9,6.06439992]
[1641251843460,2.32838475,170.91,170.87,8.56]
[1641251843761,1.42349266,170.92,170.87,8.56]
[1641251844259,1.42349266,170.92,170.85,25.62359427]
[1641251844860,2.61843698,170.91,170.85,25.62359427]
[1641251845464,8.78,170.9,170.85,25.62359427]
[1641251846264,2.61843698,170.91,170.85,25.62359427]
[1641251846467,2.61843698,170.91,170.85,34.40279427]
[1641251847667,11.39763698,170.91,170.85,34.40279427]
[1641251848866,11.39763698,170.91,170.85,34.66279427]
[1641251849666,2.61843698,170.91,170.85,34.66279427]
[1641251850268,2.61843698,170.91,170.85,35.16279427]
[1641251851067,1.42349266,170.92,170.85,35.16279427]
[1641251851269,1.42349266,170.92,170.86,8.56]
[1641251851467,1.42349266,170.92,170.9,25.89833081]
[1641251851671,1.42349266,170.92,170.91,3.03219997]
[1641251852067,1.42349266,170.92,170.91,3.29219997]
[1641251852670,1.42349266,170.92,170.91,3.03219997]
[1641251854174,1.42349266,170.92,170.91,6.06439992]
[1641251855072,51.20209266,170.92,170.91,6.06439992]
[1641251855271,10.20209266,170.92,170.91,6.06439992]
[1641251855474,1.42349266,170.92,170.91,6.06439992]
[1641251858678,1.42349266,170.92,170.91,6.32439992]
[1641251859479,1.42349266,170.92,170.91,15.10039992]
[1641251861106,1.42349266,170.92,170.91,6.06439992]
[1641251861405,1.42349266,170.92,170.91,6.56439992]
[1641251862406,1.42349266,170.92,170.91,15.60059992]
[1641251865108,1.42349266,170.92,170.91,15.34059992]
[1641251865512,1.42349266,170.92,170.91,6.56439992]
[1641251866013,1.42349266,170.92,170.91,6.06439992]
[1641251870018,1.42349266,170.92,170.91,6.82439992]
[1641251870417,1.42349266,170.92,170.91,15.38439992]
[1641251871422,1.42349266,170.92,170.91,24.16029992]
[1641251873421,1.42349266,170.92,170.91,23.90029992]
[1641251873823,1.42349266,170.92,170.91,24.16029992]
[1641251877128,1.42349266,170.92,170.91,23.90029992]
[1641251880126,1.42349266,170.92,170.91,24.16029992]
[1641251882529,1.42349266,170.92,170.91,23.90029992]
[1641251883331,24.7579,171.04,170.91,23.90029992]
[1641251883930,2.89962476,171.03,170.91,24.16029992]
[1641251884130,2.89962476,171.03,170.92,22.9063]
[1641251884332,8.7744,171.02,170.95,23.43445702]
[1641251884734,8.7744,171.02,170.95,23.93445702]
[1641251885032,8.7744,171.02,170.95,23.69445702]
[1641251885236,8.7744,171.02,170.95,24.19445702]
[1641251885433,2.89962476,171.03,170.95,23.43445702]
[1641251886433,3.65962476,171.03,170.95,23.43445702]
[1641251886632,8.7764,170.98,170.95,23.43445702]
[1641251886832,2.48954303,170.97,170.9,8.7766]
[1641251887033,2.48954303,170.97,170.85,37.9244]
[1641251887260,2.74954303,170.97,170.84,15.30515445]
[1641251887433,2.74954303,170.97,170.84,24.08975445]
[1641251887836,11.52674303,170.97,170.85,31.3733489]
[1641251888343,11.52674303,170.97,170.85,31.8733489]
[1641251888536,11.26674303,170.97,170.85,31.8733489]
[1641251888738,11.52674303,170.97,170.85,31.8733489]
[1641251889139,11.52674303,170.97,170.85,56.2441489]
[1641251889339,11.26674303,170.97,170.85,56.2441489]
[1641251889942,11.26674303,170.97,170.85,56.5041489]
[1641251891541,11.26674303,170.97,170.85,56.2441489]
[1641251891944,29.2533,171.03,170.86,8.56]
[1641251892245,96.1128,171.02,170.92,8.7752]
[1641251892443,73.4617,171.02,170.92,9.2752]
[1641251892944,2.29925782,171.01,170.93,31.16773083]
[1641251893144,2.29925782,171.01,170.94,8.7744]
[1641251893546,2.29925782,171.01,170.94,9.0344]
[1641251896366,2.29925782,171.01,170.94,9.5344]
[1641251897272,2.29925782,171.01,170.94,9.2744]
[1641251897466,2.29925782,171.01,170.94,8.7744]
[1641251898066,11.07405782,171.01,170.94,8.7744]
[1641251898767,11.07405782,171.01,170.94,9.0344]
[1641251899069,11.07405782,171.01,170.94,9.5344]
[1641251899266,2.29925782,171.01,170.94,9.5344]
[1641251901269,32.746,171.04,170.94,9.5344]
[1641251901469,23.9728,171.04,170.94,33.2924]
[1641251902068,23.9728,171.04,170.94,9.5344]
[1641251902273,23.4728,171.04,170.94,9.5344]
[1641251902471,2.4637261,171.03,170.94,9.5344]
[1641251902670,11.2375261,171.03,170.94,9.5344]
[1641251903371,2.4637261,171.03,170.94,9.5344]
[1641251904673,8.7742,171.02,170.94,9.5344]
[1641251905772,2.4637261,171.03,170.94,9.2744]
[1641251906076,8.7748,171.01,170.94,9.2744]
[1641251906274,2.7237261,171.03,170.93,39.94273083]
[1641251906473,2.7237261,171.03,170.93,40.44273083]
[1641251907072,2.7237261,171.03,170.93,40.70273083]
[1641251907273,8.7747,171.01,170.93,40.70273083]
[1641251908474,8.7751,171.0,170.93,40.70273083]
[1641251908676,7.2751,171.0,170.93,40.70273083]
[1641251908879,2.7237261,171.03,170.93,31.16773083]
[1641251910077,2.7237261,171.03,170.93,31.42773083]
[1641251910078,2.4637261,171.03,170.93,31.42773083]
[1641251910284,8.7746,171.02,170.93,40.70273083]
[1641251910479,2.4637261,171.03,170.93,40.20273083]
[1641251910683,2.4637261,171.03,170.93,40.70273083]
[1641251910880,2.4637261,171.03,170.93,40.20273083]
[1641251911080,2.4637261,171.03,170.93,40.70273083]
[1641251911683,8.775,171.01,170.93,40.70273083]
[1641251911880,2.4637261,171.03,170.93,40.70273083]
[1641251913785,72.3702,171.07,170.96,8.7711]
[1641251913986,72.3702,171.07,170.97,8.56]
[1641251914184,0.08121775,171.08,170.97,9.98669368]
[1641251914386,0.08121775,171.08,170.98,24.0992]
[1641251914596,0.08121775,171.08,171.0,23.92284916]
[1641251914786,0.08121775,171.08,171.01,39.8298]
[1641251915189,0.08121775,171.08,171.01,40.3298]
[1641251915390,0.08121775,171.08,171.01,40.5898]
[1641251915590,0.08121775,171.08,171.01,40.3298]
[1641251915787,0.08121775,171.08,171.01,17.3286]
[1641251916189,0.08121775,171.08,171.01,8.56]
[1641251916387,8.7719,171.07,171.01,8.56]
[1641251916587,11.59724625,171.07,171.01,8.56]
[1641251916887,8.7719,171.07,171.0,23.92284916]
[1641251917088,0.08121775,171.08,171.0,32.69404916]
[1641251917487,0.08121775,171.08,171.0,32.95404916]
[1641251918290,0.08121775,171.08,171.01,8.56]
[1641251918489,0.08121775,171.08,171.02,8.77]
[1641251919193,2.34619046,171.08,171.0,23.92284916]
[1641251919391,0.08121775,171.08,171.0,23.92284916]
[1641251919591,0.08121775,171.08,171.01,8.7708]
[1641251919990,0.08121775,171.08,171.01,9.0308]
[1641251920895,0.08121775,171.08,171.01,9.5308]
[1641251921296,0.08121775,171.08,171.02,33.4133]
[1641251921494,0.08121775,171.08,171.02,33.6733]
[1641251922496,0.08121775,171.08,171.02,41.08499368]
[1641251922899,0.08121775,171.08,171.03,8.56]
[1641251923096,0.08121775,171.08,171.05,8.7685]
[1641251923303,0.08121775,171.08,171.06,3.03219997]
[1641251923501,0.08121775,171.08,171.07,32.07845292]
[1641251926105,0.08121775,171.08,171.07,29.04625297]
[1641251927508,0.08121775,171.08,171.07,32.07845292]
[1641251927808,0.08121775,171.08,171.07,3.03219995]
[1641251928209,0.08121775,171.08,171.06,3.03219997]
[1641251928407,0.08121775,171.08,170.98,23.8002]
[1641251928623,0.08121775,171.08,170.99,0.5]
[1641251928823,0.08121775,171.08,171.0,22.47763456]
[1641251929023,8.85241775,171.08,171.0,22.47763456]
[1641251929323,8.85241775,171.08,171.0,22.97763456]
[1641251929924,8.85241775,171.08,171.0,23.23763456]
[1641251930628,8.85241775,171.08,171.0,32.00893456]
[1641251930824,8.85241775,171.08,171.0,31.50893456]
[1641251931035,9.11241775,171.08,171.0,31.24893456]
[1641251931226,2.68046468,171.06,171.0,22.47763456]
[1641251931625,2.68046468,171.06,170.97,17.3497]
[1641251931828,2.94046468,171.06,170.97,17.8497]
[1641251932530,2.94046468,171.06,170.97,41.71295975]
[1641251932727,8.7733,171.04,170.97,32.42325975]
[1641251935733,8.7733,171.04,170.97,8.56]
[1641251935929,9.0333,171.04,170.97,8.56]
[1641251936131,8.7739,171.03,170.95,32.2469]
[1641251936633,31.86946265,171.03,170.92,25.00522822]
[1641251937237,31.86946265,171.03,170.89,33.1411]
[1641251937735,29.2566,171.02,170.89,33.1411]
[1641251938140,29.5166,171.02,170.89,33.1411]
[1641251938340,30.0166,171.02,170.9,28.90994366]
[1641251938939,29.5166,171.02,170.9,28.90994366]
[1641251939340,30.0166,171.02,170.9,29.40994366]
[1641251939541,29.5166,171.02,170.9,28.90994366]
[1641251939740,3.01357823,170.97,170.9,28.90994366]
[1641251940439,8.56,171.03,170.9,28.90994366]
[1641251940641,8.7754,171.01,170.92,8.7752]
[1641251940843,8.7754,171.01,170.91,24.2162]
[1641251941038,8.7754,171.01,170.91,24.4762]
[1641251941240,8.7754,171.01,170.91,26.40289368]
[1641251941440,2.61375112,171.0,170.91,26.40289368]
[1641251941641,2.61375112,171.0,170.93,8.7748]
[1641251941841,11.38925112,171.0,170.91,24.7162]
[1641251942041,40.80806603,171.0,170.91,24.7162]
[1641251942241,40.80806603,171.0,170.91,24.2162]
[1641251942444,32.03256603,171.0,170.91,24.2162]
[1641251942641,32.29256603,171.0,170.91,24.2162]
[1641251943042,8.7765,170.98,170.91,24.2162]
[1641251943446,9.0365,170.98,170.9,28.90994366]
[1641251943643,9.0365,170.98,170.9,29.40994366]
[1641251944044,8.7765,170.98,170.9,29.40994366]
[1641251944249,8.7759,171.0,170.9,38.44614366]
[1641251944446,8.56,171.06,170.9,48.43283734]
[1641251944645,8.56,171.06,170.91,22.8568]
[1641251944844,8.56,171.06,170.91,23.3568]
[1641251945044,8.56,171.06,170.91,23.6168]
[1641251945249,8.7745,171.04,170.94,8.7742]
[1641251945446,8.7745,171.04,170.94,31.87816583]
[1641251945844,9.0345,171.04,170.94,31.87816583]
[1641251946052,9.0345,171.04,170.94,23.10396583]
[1641251946846,0.26,171.04,170.94,23.10396583]
[1641251947052,25.54977855,171.05,170.94,23.10396583]
[1641251947854,8.7749,171.03,170.94,23.10396583]
[1641251948049,9.0349,171.03,170.94,23.10396583]
[1641251948449,0.26,171.03,170.94,23.10396583]
[1641251948650,2.82303527,171.05,170.94,23.10396583]
[1641251949049,2.82303527,171.05,170.94,23.36396583]
[1641251949650,2.82303527,171.05,170.94,32.13826583]
[1641251949853,2.82303527,171.05,170.95,24.2349]
[1641251950253,2.82303527,171.05,170.95,0.5]
[1641251950654,8.7753,171.03,170.94,22.60396583]
[1641251950854,10.04403527,171.05,170.94,22.60396583]
[1641251951157,10.30403527,171.05,170.94,22.60396583]
[1641251951854,8.776,171.01,170.94,22.60396583]
[1641251952056,9.036,171.01,170.91,33.0194]
[1641251952258,9.036,171.01,170.91,33.5194]
[1641251953059,30.28956739,171.0,170.91,33.5194]
[1641251953258,30.28956739,171.0,170.91,33.0194]
[1641251953559,2.30666777,170.99,170.91,24.2436]
[1641251954060,2.56666777,170.99,170.91,24.2436]
[1641251955288,8.7775,170.98,170.83,8.56]
[1641251955491,17.5975,170.98,170.84,6.74515445]
[1641251955888,18.0975,170.98,170.84,6.74515445]
[1641251956288,18.0975,170.98,170.84,45.33744204]
[1641251956690,17.8375,170.98,170.85,24.77]
[1641251956890,17.5975,170.98,170.85,25.27]
[1641251957089,17.5975,170.98,170.86,1.42669368]
[1641251957291,8.82,170.98,170.89,8.777]
[1641251957492,8.56,170.98,170.89,0.26]
[1641251958293,8.56,170.98,170.88,30.07270081]
[1641251959595,8.56,170.98,170.9,8.7764]
[1641251959995,8.56,170.98,170.9,9.0364]
[1641251960697,79.65436777,170.99,170.9,9.0364]
[1641251963501,8.56,171.01,170.9,9.0364]
[1641251963900,8.82,171.01,170.9,9.0364]
[1641251964501,2.66477199,171.0,170.9,9.0364]
[1641251964701,2.16477199,171.0,170.9,9.0364]
[1641251965004,2.42477199,171.0,170.9,9.0364]
[1641251965203,0.26,171.0,170.9,9.0364]
[1641251965401,29.53458327,171.01,170.9,9.0364]
[1641251965603,29.53458327,171.01,170.92,26.48594683]
[1641251965808,29.53458327,171.01,170.93,8.7748]
[1641251966031,29.53458327,171.01,170.93,9.0348]
[1641251966607,29.53458327,171.01,170.91,22.6886]
[1641251967406,29.53458327,171.01,170.91,31.4642]
[1641251967606,29.79458327,171.01,170.92,31.92251036]
[1641251967805,8.7755,171.0,170.92,31.92251036]
[1641251968008,2.50336002,171.02,170.92,32.18251036]
[1641251968209,2.50336002,171.02,170.92,32.68251036]
[1641251969410,2.50336002,171.02,170.92,41.45761036]
[1641251970012,2.76336002,171.02,170.92,9.2751]
[1641251971016,2.76336002,171.02,170.92,35.19383578]
[1641251971616,11.53816002,171.02,170.92,35.19383578]
[1641251973317,11.27816002,171.02,170.92,35.19383578]
[1641251973542,11.27816002,171.02,170.92,35.45383578]
[1641251974947,11.27816002,171.02,170.92,35.19383578]
[1641251975147,2.50336002,171.02,170.92,8.7751]
[1641251975347,2.76336002,171.02,170.92,8.7751]
[1641251976149,8.7754,170.99,170.92,8.7751]
[1641251976350,2.25955999,170.98,170.85,24.2363]
[1641251976551,8.56,170.97,170.86,24.7794]
[1641251976957,9.32,170.97,170.86,24.7794]
[1641251977352,8.7795,170.92,170.86,49.17712997]
[1641251977553,11.61316445,170.92,170.86,49.17712997]
[1641251977753,8.7795,170.92,170.86,49.17712997]
[1641251978854,8.7795,170.92,170.86,24.39772997]